[Event "98th Caplin Hastings Masters 2024-25"]
[Site "Hastings"]
[Date "2024.12.28"]
[Round "1.33"]
[White "Adams, Henry"]
[Black "Kim, Taewoo A"]
[Result "1-0"]
[ECO "D02"]
[WhiteElo "1991"]
[BlackElo "1863"]
[Annotator "NA"]
[PlyCount "144"]
[EventDate "2024.12.23"]
[EventType "swiss"]
[EventCountry "ENG"]
[SourceTitle "playchess.com"]
[Source "ChessBase"]
[SourceQuality "1"]
[TimeControl "5400+30"]

1. d4 {[%emt 0:00:04]} d5 {[%emt 0:00:26]} 2. Nf3 {[%emt 0:00:06]} Bf5 {[%emt 0:00:32]} 3. g3 {[%emt 0:00:06]} e6 {[%emt 0:00:27]} 4. Bg2 {[%emt 0:00:06]} h6 {[%emt 0:00:55]} 5. O-O {[%emt 0:00:09]} Nf6 {[%emt 0:00:38]} 6. c4 {[%emt 0:00:07]} c6 {[%emt 0:00:35]} 7. Nc3 {[%emt 0:00:08]} Nbd7 {[%emt 0:00:35]} 8. Nd2 {[%emt 0:00:45]} Be7 {[%emt 0:00:46]} 9. e4 {[%emt 0:00:09]} dxe4 {[%emt 0:00:28]} 10. Ndxe4 {[%emt 0:00:07]} O-O {[%emt 0:00:29]} 11. Qe2 {[%emt 0:08:56]} Nxe4 {[%emt 0:08:43]} 12. Nxe4 {[%emt 0:00:43]} Nf6 {[%emt 0:00:47] D11: Slav Defence: 3 Nf3 sidelines and 3...Nf6 4 e3 Bg4.} 13. Rd1 {[%emt 0:01:36]} Nxe4 {[%emt 0:02:43]} 14. Bxe4 {[%emt 0:00:07]} Bxe4 {[%emt 0:01:22]} 15. Qxe4 {[%emt 0:00:03]} Qc7 {[%emt 0:01:22]} 16. Bf4 {[%emt 0:09:48]} Bd6 {[%emt 0:02:41]} 17. Bd2 {[%emt 0:00:18]} a5 {[%emt 0:03:07]} 18. Rac1 {[%emt 0:09:19]} Qe7 {[%emt 0:06:59]} 19. Qg4 {[%emt 0:17:13]} Qf6 {[%emt 0:11:35]} 20. d5 {[%emt 0:07:11]} exd5 {[%emt 0:04:59]} 21. cxd5 {[%emt 0:00:37]} cxd5 {[%emt 0:04:13]} 22. Be3 {[%emt 0:05:12]} Be5 {[%emt 0:06:25]} 23. Rxd5 {[%emt 0:01:29]} Rfd8 {[%emt 0:07:25]} 24. Rb5 {[%emt 0:05:55]} Bd4 {[%emt 0:24:34]} 25. Rxb7 {[%emt 0:09:33]} Bxe3 {[%emt 0:01:11]} 26. fxe3 {[%emt 0:00:20]} Rd2 {[%emt 0:02:15]} 27. Rf1 {[%emt 0:04:38]} Qc6 {[%emt 0:01:10]} 28. Qf3 {[%emt 0:00:19]} Qxf3 {[%emt 0:00:46]} 29. Rxf3 {[%emt 0:00:01]} Rc8 {[%emt 0:01:10]} 30. Rbxf7 {[%emt 0:01:23]} Rcc2 {[%emt 0:02:29]} 31. Rf2 {[%emt 0:01:03]} Rxb2 {[%emt 0:00:09]} 32. Rf8+ {[%emt 0:00:24]} Kh7 {[%emt 0:00:02]} 33. Rxd2 {[%emt 0:00:05]} Rxd2 {[%emt 0:00:05]} 34. Rf2 {[%emt 0:00:04]} Rd3 {[%emt 0:01:15]} 35. Re2 {[%emt 0:00:05]} Kg6 {[%emt 0:00:42]} 36. Kf2 {[%emt 0:01:45]} Kf5 {[%emt 0:01:18]} 37. Kf3 {[%emt 0:00:23]} g5 {[%emt 0:01:41]} 38. g4+ {[%emt 0:00:44]} Ke5 {[%emt 0:00:06]} 39. Rb2 {[%emt 0:00:33]} a4 {[%emt 0:01:54]} 40. Rb5+ {[%emt 0:10:36]} Kf6 {[%emt 0:00:30]} 41. Rb6+ {[%emt 0:00:08]} Kg7 {[%emt 0:00:14]} 42. Rb2 {[%emt 0:00:06]} Kf6 {[%emt 0:01:06]} 43. Ke4 {[%emt 0:00:29]} Ra3 {[%emt 0:00:19]} 44. Kd4 {[%emt 0:01:25]} Ke6 {[%emt 0:00:16]} 45. e4 {[%emt 0:00:30]} Rh3 {[%emt 0:01:26]} 46. Rb6+ {[%emt 0:00:35]} Kd7 {[%emt 0:00:00]} 47. Rb2 {[%emt 0:03:13]} Ke6 {[%emt 0:00:36]} 48. e5 {[%emt 0:00:35]} Rh4 {[%emt 0:00:28]} 49. Rb6+ {[%emt 0:00:19]} Ke7 {[%emt 0:00:15]} 50. Kd5 {[%emt 0:00:13]} Rxh2 {[%emt 0:00:18]} 51. Rb7+ {[%emt 0:00:21]} Kd8 {[%emt 0:00:22]} 52. a3 {[%emt 0:00:37]} Ra2 {[%emt 0:01:03]} 53. Kd6 {[%emt 0:00:48]} Kc8 {[%emt 0:00:14]} 54. Rc7+ {[%emt 0:00:09]} Kd8 {[%emt 0:00:13]} 55. Rc3 {[%emt 0:00:05]} Rd2+ {[%emt 0:00:36]} 56. Ke6 {[%emt 0:00:08]} Rd4 $1 {[%emt 0:00:39]} 57. Rg3 {[%emt 0:01:15]} Rd2 {[%emt 0:00:53]} 58. Rh3 {[%emt 0:00:37]} Rb2 $18 {[%emt 0:00:16]} (58... Rd4 $1 $11) 59. Rd3+ {[%emt 0:02:33]} Ke8 {[%emt 0:00:17]} 60. Rd4 {[%emt 0:00:05]} Rb6+ {[%emt 0:00:34]} 61. Kf5 {[%emt 0:00:18]} Ra6 {[%emt 0:00:19]} 62. Rd6 {[%emt 0:01:00]} Ra5 {[%emt 0:00:24]} 63. Rxh6 {[%emt 0:00:11]} Kd7 {[%emt 0:00:35]} 64. Rb6 {[%emt 0:00:21]} Kc7 {[%emt 0:00:41]} 65. Rb4 {[%emt 0:00:23]} Kc6 {[%emt 0:00:25]} 66. Kf6 {[%emt 0:00:15]} Kd5 {[%emt 0:00:21]} 67. e6 {[%emt 0:00:20]} Ra6 {[%emt 0:00:30]} 68. Rb5+ {[%emt 0:00:52]} Kc4 {[%emt 0:00:35]} 69. Rb8 {[%emt 0:00:46]} Rd6 {[%emt 0:00:37]} 70. Kf7 {[%emt 0:00:28]} Rd3 {[%emt 0:00:36]} 71. e7 {[%emt 0:00:26]} Rf3+ {[%emt 0:00:28]} 72. Kg6 {[%emt 0:00:05]} Kd5 {[%emt 0:01:13]} 1-0

[Event "98th Caplin Hastings Masters 2024-25"]
[Site "Hastings"]
[Date "2024.12.28"]
[Round "1.34"]
[White "Buckland, Louis"]
[Black "Zhu, Yaoyao"]
[Result "1/2-1/2"]
[ECO "D30"]
[WhiteElo "1856"]
[BlackElo "1990"]
[Annotator "NA RC"]
[PlyCount "29"]
[EventDate "2024.12.23"]
[EventType "swiss"]
[EventCountry "ENG"]
[SourceTitle "playchess.com"]
[Source "ChessBase"]
[SourceQuality "1"]
[TimeControl "5400+30"]

1. d4 {[%emt 0:00:02]} d5 {[%emt 0:00:05]} 2. c4 {[%emt 0:00:04]} e6 {[%emt 0:00:03]} 3. g3 {[%emt 0:00:05]} dxc4 {[%emt 0:00:30]} 4. Bg2 {[%emt 0:00:09]} c5 {[%emt 0:00:25]} 5. Nf3 {[%emt 0:02:02]} Nc6 {[%emt 0:00:08]} 6. Qa4 {[%emt 0:03:28]} cxd4 {[%emt 0:01:19]} 7. Nxd4 {[%emt 0:10:24]} Qxd4 {[%emt 0:00:18]} 8. Bxc6+ {[%emt 0:00:07]} Bd7 {[%emt 0:00:07]} 9. Be3 {[%emt 0:13:55]} Bxc6 {[%emt 0:17:35]} 10. Qxc6+ {[%emt 0:02:54]} bxc6 {[%emt 0:17:44]} 11. Bxd4 {[%emt 0:00:04]} Bb4+ {[%emt 0:00:12]} 12. Nc3 {[%emt 0:08:12]} Nf6 {[%emt 0:08:25]} 13. Rc1 {[%emt 0:08:01]} O-O {[%emt 0:02:02]} 14. O-O {[%emt 0:06:17]} Nd7 {[%emt 0:08:50]} 15. Na4 {[%emt 0:08:10]} 1/2-1/2

[Event "98th Caplin Hastings Masters 2024-25"]
[Site "Hastings"]
[Date "2024.12.28"]
[Round "1.35"]
[White "Gu In-Jung"]
[Black "Kennedy, Craig"]
[Result "1/2-1/2"]
[ECO "A13"]
[WhiteElo "1987"]
[BlackElo "1851"]
[Annotator "NA RC"]
[PlyCount "48"]
[EventDate "2024.12.23"]
[EventType "swiss"]
[EventCountry "ENG"]
[SourceTitle "playchess.com"]
[Source "ChessBase"]
[SourceQuality "1"]
[TimeControl "5400+30"]

1. c4 {[%emt 0:00:02]} e6 {[%emt 0:00:19]} 2. Nf3 {[%emt 0:03:02]} f5 {[%emt 0:00:08]} 3. g3 {[%emt 0:00:57]} Nf6 {[%emt 0:00:05]} 4. Bg2 {[%emt 0:00:06]} c6 {[%emt 0:00:07]} 5. O-O {[%emt 0:01:55]} d5 {[%emt 0:00:16]} 6. b3 {[%emt 0:01:58]} Bd6 {[%emt 0:00:25]} 7. d3 {[%emt 0:02:40]} e5 {[%emt 0:05:18]} 8. cxd5 {[%emt 0:01:35]} cxd5 {[%emt 0:00:09]} 9. Nc3 {[%emt 0:01:39]} Nc6 {[%emt 0:03:18]} 10. Bg5 {[%emt 0:06:08]} Be6 {[%emt 0:01:40]} 11. e4 {[%emt 0:01:35]} fxe4 {[%emt 0:04:15]} 12. dxe4 {[%emt 0:01:06]} d4 {[%emt 0:00:39]} 13. Nd5 {[%emt 0:00:34]} Be7 {[%emt 0:00:27]} 14. Nxe7 {[%emt 0:01:36]} Qxe7 {[%emt 0:00:19]} 15. Nh4 {[%emt 0:04:00]} O-O {[%emt 0:12:08]} 16. f4 {[%emt 0:10:24]} Qe8 {[%emt 0:04:02]} 17. fxe5 {[%emt 0:11:58]} Ng4 {[%emt 0:06:28]} 18. Nf5 {[%emt 0:03:40]} Ngxe5 {[%emt 0:00:41]} 19. Qd2 {[%emt 0:16:33]} Qd7 {[%emt 0:02:49]} 20. Rae1 {[%emt 0:08:35]} Rae8 {[%emt 0:05:41]} 21. Bf4 {[%emt 0:04:24]} Rd8 {[%emt 0:03:36]} 22. Bg5 {[%emt 0:01:31]} Rde8 {[%emt 0:00:17]} 23. Bf4 {[%emt 0:02:38]} Rd8 {[%emt 0:00:10]} 24. Bg5 {[%emt 0:03:23]} Rde8 {[%emt 0:00:07]} 1/2-1/2

[Event "98th Caplin Hastings Masters 2024-25"]
[Site "Hastings"]
[Date "2024.12.28"]
[Round "1.37"]
[White "Zhang, Kendrick Botong"]
[Black "Flynn, David"]
[Result "1-0"]
[ECO "B35"]
[WhiteElo "1979"]
[BlackElo "1834"]
[Annotator "NA"]
[PlyCount "109"]
[EventDate "2024.12.23"]
[EventType "swiss"]
[EventCountry "ENG"]
[SourceTitle "playchess.com"]
[Source "ChessBase"]
[SourceQuality "1"]
[TimeControl "5400+30"]

1. e4 {[%emt 0:00:09]} c5 {[%emt 0:00:02]} 2. Nf3 {[%emt 0:00:06]} Nc6 {[%emt 0:00:03]} 3. d4 {[%emt 0:00:07]} cxd4 {[%emt 0:00:02]} 4. Nxd4 {[%emt 0:00:21]} g6 {[%emt 0:00:03]} 5. Nc3 {[%emt 0:00:10]} Bg7 {[%emt 0:00:06]} 6. Be3 {[%emt 0:00:19]} Nf6 {[%emt 0:00:09]} 7. Bc4 {[%emt 0:00:15]} O-O {[%emt 0:00:13]} 8. Bb3 {[%emt 0:00:12]} Re8 {[%emt 0:00:09] B35: Sicilian: Accelerated Dragon with 5 Nc3: main line.} 9. f3 {[%emt 0:03:17]} d5 {[%emt 0:00:13]} 10. exd5 {[%emt 0:16:52]} Nb4 {[%emt 0:00:31]} 11. Nde2 {[%emt 0:00:59]} e6 {[%emt 0:01:16]} 12. Bd4 {[%emt 0:09:53]} Nbxd5 {[%emt 0:00:54]} 13. Nxd5 {[%emt 0:00:39]} exd5 {[%emt 0:05:01]} 14. O-O {[%emt 0:01:40]} Bd7 {[%emt 0:06:12]} 15. Re1 {[%emt 0:05:31]} Bc6 {[%emt 0:00:42]} 16. c3 {[%emt 0:09:22]} a5 {[%emt 0:12:25]} 17. Nf4 {[%emt 0:05:53]} Rxe1+ {[%emt 0:05:08]} 18. Qxe1 {[%emt 0:00:12]} a4 {[%emt 0:05:12]} 19. Bc2 {[%emt 0:01:45]} a3 {[%emt 0:01:58]} 20. b3 {[%emt 0:01:33]} Qa5 {[%emt 0:07:19]} 21. Qd2 {[%emt 0:05:49]} Rc8 {[%emt 0:10:45]} 22. Rd1 {[%emt 0:02:12]} Ne8 {[%emt 0:08:34]} 23. b4 {[%emt 0:06:30]} Qc7 {[%emt 0:06:25]} 24. Bb3 {[%emt 0:02:07]} Nf6 {[%emt 0:12:06]} 25. Nd3 {[%emt 0:08:00]} Bb5 {[%emt 0:03:04]} 26. Be5 {[%emt 0:07:26]} Qe7 {[%emt 0:02:13]} 27. Re1 {[%emt 0:04:17]} Bc4 {[%emt 0:06:16]} 28. Bd4 {[%emt 0:03:29]} Qd6 {[%emt 0:00:53]} 29. Bxc4 {[%emt 0:01:36]} dxc4 {[%emt 0:00:14]} 30. Nc5 {[%emt 0:00:09]} b5 {[%emt 0:00:47]} 31. Qc1 {[%emt 0:00:36]} Ra8 {[%emt 0:02:28]} 32. Nb7 {[%emt 0:01:32]} Qd7 {[%emt 0:00:48]} 33. Na5 {[%emt 0:00:15]} Nd5 {[%emt 0:00:40]} 34. Rd1 {[%emt 0:01:36]} Qe6 {[%emt 0:01:08]} 35. Qd2 {[%emt 0:01:12]} Bxd4+ {[%emt 0:02:24]} 36. Qxd4 {[%emt 0:00:06]} Qe3+ {[%emt 0:00:49]} 37. Qxe3 {[%emt 0:00:15]} Nxe3 {[%emt 0:00:02]} 38. Rd7 {[%emt 0:00:49]} Re8 {[%emt 0:00:32]} 39. Kf2 {[%emt 0:00:53]} Nf5 {[%emt 0:00:03]} 40. Rd5 {[%emt 0:00:33]} Re6 {[%emt 0:00:56]} 41. Rxb5 {[%emt 0:00:57]} Rd6 {[%emt 0:00:05]} 42. Nxc4 {[%emt 0:00:22]} Rd3 {[%emt 0:00:08]} 43. Nxa3 {[%emt 0:01:29]} Rxc3 {[%emt 0:00:05]} 44. Ra5 {[%emt 0:00:08]} Rc1 {[%emt 0:00:57]} 45. Rc5 {[%emt 0:00:33]} Rd1 {[%emt 0:00:48]} 46. Rc2 {[%emt 0:00:19]} Nd4 {[%emt 0:00:26]} 47. Rb2 {[%emt 0:00:14]} Rd3 {[%emt 0:00:16]} 48. Nc4 {[%emt 0:00:23]} Rc3 {[%emt 0:00:38]} 49. Nd6 {[%emt 0:00:27]} Rc6 {[%emt 0:00:21]} 50. Ne4 {[%emt 0:00:25]} f5 {[%emt 0:00:00]} 51. b5 {[%emt 0:00:00]} Rb6 {[%emt 0:00:00]} 52. Nc3 {[%emt 0:00:13]} Kf7 {[%emt 0:00:44]} 53. a4 {[%emt 0:00:14]} Nc6 {[%emt 0:00:32]} 54. Nd5 {[%emt 0:00:37]} Rb8 {[%emt 0:00:28]} 55. Re2 $18 {[%emt 0:00:36]} 1-0

[Event "98th Caplin Hastings Masters 2024-25"]
[Site "Hastings"]
[Date "2024.12.28"]
[Round "1.38"]
[White "Bryant, Marc A"]
[Black "Suez-Panama, Gilles"]
[Result "0-1"]
[ECO "A25"]
[WhiteElo "1825"]
[BlackElo "1979"]
[Annotator "NA"]
[PlyCount "88"]
[EventDate "2024.12.23"]
[EventType "swiss"]
[EventCountry "ENG"]
[SourceTitle "playchess.com"]
[Source "ChessBase"]
[SourceQuality "1"]
[TimeControl "5400+30"]

1. c4 {[%emt 0:00:10]} e5 {[%emt 0:23:44]} 2. Nc3 {[%emt 0:00:18]} Nc6 {[%emt 0:00:11]} 3. e4 {[%emt 0:00:21]} Bc5 {[%emt 0:01:05]} 4. a3 {[%emt 0:00:42]} a5 {[%emt 0:00:19]} 5. Nf3 {[%emt 0:00:54]} d6 {[%emt 0:00:27]} 6. h3 {[%emt 0:00:06] C20: 1 e4 e5: Unusual White second moves.} f5 {[%emt 0:00:52]} 7. d3 {[%emt 0:01:22]} Nf6 {[%emt 0:06:22]} 8. Bg5 {[%emt 0:01:05]} h6 {[%emt 0:02:51]} 9. Bxf6 {[%emt 0:00:08]} Qxf6 {[%emt 0:00:22]} 10. Nd5 {[%emt 0:00:16]} Qf7 {[%emt 0:01:51]} 11. Qa4 {[%emt 0:06:05]} O-O {[%emt 0:06:35]} 12. b4 {[%emt 0:00:35]} Bd4 {[%emt 0:07:13]} 13. Ra2 {[%emt 0:04:13]} fxe4 {[%emt 0:04:55]} 14. Nxd4 {[%emt 0:04:02]} Nxd4 {[%emt 0:01:27]} 15. dxe4 {[%emt 0:00:29]} Be6 {[%emt 0:04:05]} 16. Bd3 {[%emt 0:01:42]} axb4 {[%emt 0:04:58]} 17. Qxb4 {[%emt 0:00:05]} b6 {[%emt 0:02:17]} 18. Rf1 {[%emt 0:06:21]} Bxd5 {[%emt 0:08:25]} 19. cxd5 {[%emt 0:02:34]} Qf4 {[%emt 0:02:44]} 20. Qd2 {[%emt 0:02:25]} Qh2 {[%emt 0:01:32]} 21. f3 {[%emt 0:01:33]} Ra5 {[%emt 0:02:12]} 22. f4 {[%emt 0:09:18]} Qg3+ {[%emt 0:03:19]} 23. Kd1 {[%emt 0:01:14]} Rxf4 {[%emt 0:04:25]} 24. Rxf4 {[%emt 0:00:29]} exf4 {[%emt 0:00:28]} 25. Qc3 {[%emt 0:03:48]} Qe3 {[%emt 0:00:47]} 26. Qd2 {[%emt 0:04:46]} Qg1+ {[%emt 0:00:04]} 27. Qe1 {[%emt 0:00:28]} Qh2 {[%emt 0:00:59]} 28. Qf2 {[%emt 0:00:33]} Nb5 {[%emt 0:00:45]} 29. Bxb5 {[%emt 0:01:19]} Rxb5 {[%emt 0:00:02]} 30. Rc2 {[%emt 0:02:02]} Qh1+ {[%emt 0:02:51]} 31. Ke2 {[%emt 0:05:13]} Rb1 {[%emt 0:00:53]} 32. Rd2 {[%emt 0:01:59]} g5 {[%emt 0:02:16]} 33. Kd3 {[%emt 0:04:19]} Rb3+ {[%emt 0:00:34]} 34. Kc4 {[%emt 0:00:18]} Rxa3 $19 {[%emt 0:00:40]} (34... Qb1 $142 35. Kd4 Rxa3 (35... Qa1+ $2 36. Rb2 $19) 36. Rc2 Qb5 37. Qe2 c5+ 38. dxc6 Qe5+ 39. Kc4 Qc5#) 35. Kb5 {[%emt 0:00:13]} Qb1+ {[%emt 0:01:33]} 36. Kc6 {[%emt 0:00:07]} Rc3+ {[%emt 0:00:15]} 37. Kd7 {[%emt 0:00:04]} Qxe4 {[%emt 0:00:45]} 38. h4 {[%emt 0:01:10]} Qf5+ {[%emt 0:00:44]} 39. Kd8 {[%emt 0:00:15]} Qf8+ {[%emt 0:00:20]} 40. Kd7 {[%emt 0:00:09]} Qf7+ {[%emt 0:00:13]} 41. Kc8 {[%emt 0:00:06]} Re3 {[%emt 0:01:54]} 42. hxg5 {[%emt 0:00:41]} hxg5 {[%emt 0:00:38]} 43. g3 {[%emt 0:00:10]} c5 {[%emt 0:00:10]} 44. dxc6 {[%emt 0:01:16]} Re8# {[%emt 0:00:01]} 0-1

[Event "98th Caplin Hastings Masters 2024-25"]
[Site "Hastings"]
[Date "2024.12.28"]
[Round "1.39"]
[White "Sciupokas, Arunas"]
[Black "Rubeck, Jonathan"]
[Result "0-1"]
[ECO "B01"]
[WhiteElo "1969"]
[BlackElo "1824"]
[Annotator "RC"]
[PlyCount "72"]
[EventDate "2024.12.23"]
[EventType "swiss"]
[EventCountry "ENG"]
[SourceTitle "playchess.com"]
[Source "ChessBase"]
[SourceQuality "1"]
[TimeControl "5400+30"]

1. e4 {[%emt 0:00:05]} d5 {[%emt 0:00:20]} 2. exd5 {[%emt 0:00:08]} Nf6 {[%emt 0:00:07]} 3. c4 {[%emt 0:00:37]} e6 {[%emt 0:00:13]} 4. dxe6 {[%emt 0:05:56]} Bxe6 {[%emt 0:00:08]} 5. Nf3 {[%emt 0:02:25]} Nc6 {[%emt 0:01:52]} 6. Be2 {[%emt 0:00:51]} Bc5 {[%emt 0:02:05]} 7. Nc3 {[%emt 0:05:45]} a5 {[%emt 0:02:23]} 8. O-O {[%emt 0:03:37]} O-O {[%emt 0:01:07]} 9. d3 {[%emt 0:02:04]} h6 {[%emt 0:02:22]} 10. Bf4 {[%emt 0:09:53]} Qe7 {[%emt 0:04:45]} 11. Nb5 {[%emt 0:11:39]} Rac8 {[%emt 0:03:08]} 12. d4 {[%emt 0:11:36]} Rfd8 {[%emt 0:00:52]} 13. Qa4 {[%emt 0:02:31]} Nxd4 {[%emt 0:07:09]} 14. Nbxd4 {[%emt 0:03:57]} Bxd4 {[%emt 0:01:18]} 15. Nxd4 {[%emt 0:00:42]} Rxd4 {[%emt 0:00:18]} 16. Be3 {[%emt 0:00:44]} Re4 {[%emt 0:09:13]} 17. Qxa5 {[%emt 0:06:01]} Bxc4 {[%emt 0:03:24]} 18. Bxc4 {[%emt 0:00:17]} Rxc4 {[%emt 0:00:45]} 19. Rac1 {[%emt 0:05:57]} Re4 {[%emt 0:07:43]} 20. Qf5 {[%emt 0:03:47]} Re6 {[%emt 0:07:26]} 21. Rfd1 {[%emt 0:01:15]} c6 {[%emt 0:00:51]} 22. h3 {[%emt 0:03:19]} Ra8 {[%emt 0:03:15]} 23. a3 {[%emt 0:03:12]} Nd5 {[%emt 0:04:45]} 24. Bc5 {[%emt 0:00:46]} Qd7 {[%emt 0:02:05]} 25. Qg4 {[%emt 0:01:36]} Qc7 {[%emt 0:02:07]} 26. Bd4 {[%emt 0:02:08]} Rg6 {[%emt 0:01:11]} 27. Qe4 {[%emt 0:06:43]} Qd7 {[%emt 0:04:53]} 28. Qf3 {[%emt 0:01:40]} Qd6 {[%emt 0:04:18]} 29. Re1 {[%emt 0:03:05]} Qf4 {[%emt 0:02:34]} 30. Qe4 {[%emt 0:00:34]} Qg5 {[%emt 0:02:33]} 31. Be3 {[%emt 0:00:58]} Qh5 {[%emt 0:02:27]} 32. Kf1 {[%emt 0:00:27]} Nf6 {[%emt 0:07:23]} 33. Qd3 {[%emt 0:01:04]} Ra5 {[%emt 0:01:48]} 34. Qd8+ {[%emt 0:00:58]} Kh7 {[%emt 0:00:05]} 35. Qd1 {[%emt 0:00:21]} Qe5 {[%emt 0:01:10]} 36. Bb6 {[%emt 0:00:35]} Qb5+ {[%emt 0:00:12]} 0-1

[Event "98th Caplin Hastings Masters 2024-25"]
[Site "Hastings"]
[Date "2024.12.28"]
[Round "1.40"]
[White "Butt, Laurence"]
[Black "Ashton, Alannah"]
[Result "0-1"]
[ECO "A45"]
[WhiteElo "1818"]
[BlackElo "1953"]
[Annotator "RC"]
[PlyCount "120"]
[EventDate "2024.12.23"]
[EventType "swiss"]
[EventCountry "ENG"]
[SourceTitle "playchess.com"]
[Source "ChessBase"]
[SourceQuality "1"]
[TimeControl "5400+30"]

1. d4 {[%emt 0:00:30]} Nf6 {[%emt 0:00:30]} 2. Bg5 {[%emt 0:00:30]} d5 {[%emt 0:00:30]} 3. f4 {[%emt 0:00:30]} c5 {[%emt 0:01:51]} 4. e3 {[%emt 0:03:17]} Ne4 {[%emt 0:07:11]} 5. c3 {[%emt 0:00:43]} Nxg5 {[%emt 0:03:00]} 6. fxg5 {[%emt 0:00:04]} e5 {[%emt 0:20:15]} 7. dxe5 {[%emt 0:01:18]} Qxg5 {[%emt 0:02:05]} 8. Nf3 {[%emt 0:00:32]} Qxe3+ {[%emt 0:00:33]} 9. Be2 {[%emt 0:01:23]} Be6 {[%emt 0:02:37]} 10. Qd2 {[%emt 0:00:15]} Qxd2+ {[%emt 0:00:55]} 11. Nbxd2 {[%emt 0:00:10]} Nc6 {[%emt 0:00:19]} 12. Bb5 {[%emt 0:00:27]} Be7 {[%emt 0:02:56]} 13. Bxc6+ {[%emt 0:00:15]} bxc6 {[%emt 0:00:06]} 14. O-O {[%emt 0:00:13]} O-O {[%emt 0:01:03]} 15. Ne1 {[%emt 0:08:57]} Rab8 {[%emt 0:04:23]} 16. b3 {[%emt 0:03:42]} Bg5 {[%emt 0:11:22]} 17. Ndf3 {[%emt 0:00:58]} Be3+ {[%emt 0:00:09]} 18. Kh1 {[%emt 0:00:40]} Bc8 {[%emt 0:06:52]} 19. Nc2 {[%emt 0:01:49]} Bh6 {[%emt 0:00:52]} 20. Rfe1 {[%emt 0:01:08]} Re8 {[%emt 0:01:34]} 21. Rad1 {[%emt 0:00:37]} Bf4 {[%emt 0:01:54]} 22. Re2 {[%emt 0:06:35]} Bf5 {[%emt 0:01:24]} 23. Nce1 {[%emt 0:10:49]} f6 {[%emt 0:01:57]} 24. e6 {[%emt 0:08:13]} Rxe6 {[%emt 0:01:41]} 25. Rxe6 {[%emt 0:00:09]} Bxe6 {[%emt 0:00:03]} 26. Nd3 {[%emt 0:00:08]} Bd6 {[%emt 0:00:14]} 27. Re1 {[%emt 0:00:09]} Bf5 {[%emt 0:00:36]} 28. Nf2 {[%emt 0:00:15]} Bg6 {[%emt 0:00:42]} 29. Nh4 {[%emt 0:02:32]} Re8 {[%emt 0:01:23]} 30. Rxe8+ {[%emt 0:00:16]} Bxe8 {[%emt 0:00:01]} 31. Nd3 {[%emt 0:01:31]} Bg6 {[%emt 0:03:29]} 32. Nxg6 {[%emt 0:02:24]} hxg6 {[%emt 0:00:02]} 33. Kg1 {[%emt 0:00:25]} Kf7 {[%emt 0:01:03]} 34. Kf2 {[%emt 0:00:38]} f5 {[%emt 0:02:39]} 35. g3 {[%emt 0:01:39]} g5 {[%emt 0:00:24]} 36. Ke3 {[%emt 0:00:04]} g4 {[%emt 0:06:08]} 37. a3 {[%emt 0:04:40]} c4 {[%emt 0:03:54]} 38. bxc4 {[%emt 0:00:16]} dxc4 {[%emt 0:00:06]} 39. Nb2 {[%emt 0:03:27]} Bc5+ {[%emt 0:01:19]} 40. Ke2 {[%emt 0:00:08]} Ke6 {[%emt 0:03:37]} 41. a4 {[%emt 0:03:38]} Kd5 {[%emt 0:00:39]} 42. a5 {[%emt 0:00:15]} g5 {[%emt 0:01:17]} 43. Kf1 {[%emt 0:01:55]} f4 {[%emt 0:01:54]} 44. Kg2 {[%emt 0:00:23]} f3+ {[%emt 0:00:34]} 45. Kf1 {[%emt 0:00:03]} Be3 {[%emt 0:01:13]} 46. Ke1 {[%emt 0:04:33]} Bg1 {[%emt 0:01:07]} 47. Kf1 {[%emt 0:02:11]} Be3 {[%emt 0:00:05]} 48. Ke1 {[%emt 0:00:10]} a6 {[%emt 0:01:46]} 49. Na4 {[%emt 0:00:11]} Ke4 {[%emt 0:03:47]} 50. Nb2 {[%emt 0:00:28]} Kd5 {[%emt 0:00:46]} 51. Na4 {[%emt 0:00:09]} Ke4 {[%emt 0:00:20]} 52. Nb2 {[%emt 0:00:07]} Bg1 {[%emt 0:00:42]} 53. Kf1 {[%emt 0:00:08]} Bxh2 {[%emt 0:00:04]} 54. Kf2 {[%emt 0:00:07]} Bxg3+ {[%emt 0:00:31]} 55. Kxg3 {[%emt 0:00:09]} Ke3 {[%emt 0:00:04]} 56. Nd1+ {[%emt 0:00:13]} Kd2 {[%emt 0:00:13]} 57. Nf2 {[%emt 0:00:14]} Kxc3 {[%emt 0:00:04]} 58. Nxg4 {[%emt 0:00:12]} Kd2 {[%emt 0:00:54]} 59. Ne5 {[%emt 0:04:40]} c3 {[%emt 0:00:08]} 60. Nxf3+ {[%emt 0:00:07]} Kd1 {[%emt 0:00:22]} 0-1